[Event "8th Mersin Open 2024"]
[Site "Mersin"]
[Date "2024.11.13"]
[Round "6"]
[White "Dogan, Nazmi Can"]
[Black "Tezcan, Alper"]
[Result "1/2-1/2"]
[ECO "C02"]
[WhiteElo "2218"]
[BlackElo "2002"]
[Annotator "RC"]
[PlyCount "67"]
[EventDate "2024.11.10"]
[EventType "swiss"]
[EventCountry "TUR"]
[SourceTitle "playchess.com"]
[Source "ChessBase"]
[SourceQuality "1"]
[TimeControl "5400+30"]

1. e4 {[%emt 0:08:00]} e6 {[%emt 0:01:00]} 2. d4 {[%emt 0:00:30]} d5 {[%emt 0:00:30]} 3. e5 {[%emt 0:00:00]} c5 {[%emt 0:00:00]} 4. c3 {[%emt 0:00:00]} Nc6 {[%emt 0:00:00]} 5. Nf3 {[%emt 0:00:30]} Qb6 {[%emt 0:00:00]} 6. Bd3 {[%emt 0:00:00]} cxd4 {[%emt 0:00:00]} 7. O-O {[%emt 0:00:00]} Bd7 {[%emt 0:00:30]} 8. Re1 {[%emt 0:00:00]} Nge7 {[%emt 0:02:30]} 9. h4 {[%emt 0:00:00]} Rc8 {[%emt 0:01:30]} 10. h5 {[%emt 0:01:30]} h6 {[%emt 0:00:30]} 11. a3 {[%emt 0:02:30]} a6 {[%emt 0:05:30]} 12. b4 {[%emt 0:00:30]} dxc3 {[%emt 0:08:30]} 13. Nxc3 {[%emt 0:00:00]} Nd4 {[%emt 0:03:30]} 14. Bb2 {[%emt 0:07:00]} Nxf3+ {[%emt 0:09:30]} 15. Qxf3 {[%emt 0:00:30]} Nc6 {[%emt 0:04:30]} 16. Qg3 {[%emt 0:07:30]} Na5 {[%emt 0:23:30]} 17. Ne2 {[%emt 0:18:30]} Nc4 {[%emt 0:04:30]} 18. Bd4 {[%emt 0:00:30]} Qd8 {[%emt 0:02:30]} 19. f4 {[%emt 0:01:30]} a5 {[%emt 0:05:30]} 20. bxa5 {[%emt 0:03:30]} Qxa5 {[%emt 0:06:30]} 21. a4 {[%emt 0:02:30]} Nd2 {[%emt 0:05:53]} 22. f5 {[%emt 0:04:30]} Ne4 {[%emt 0:04:33]} 23. Bxe4 {[%emt 0:01:30]} dxe4 {[%emt 0:00:30]} 24. fxe6 {[%emt 0:00:30]} Bxe6 {[%emt 0:00:30]} 25. Nf4 {[%emt 0:00:30]} Bf5 {[%emt 0:01:10]} 26. Rec1 {[%emt 0:17:30]} Rxc1+ {[%emt 0:06:19]} 27. Rxc1 {[%emt 0:00:00]} Qd8 {[%emt 0:01:28]} 28. Rc4 {[%emt 0:03:00]} Qg5 {[%emt 0:01:11]} 29. Qb3 {[%emt 0:00:30]} Be7 {[%emt 0:00:22]} 30. Nd5 {[%emt 0:08:29]} O-O {[%emt 0:02:23]} 31. Be3 {[%emt 0:01:15]} Qh4 {[%emt 0:00:18]} 32. Bf2 {[%emt 0:00:40]} Qg5 {[%emt 0:00:11]} 33. Be3 {[%emt 0:04:59]} Qh4 {[%emt 0:00:06]} 34. Bf2 {[%emt 0:00:00]} 1/2-1/2

[Event "8th Mersin Open 2024"]
[Site "Mersin"]
[Date "2024.11.13"]
[Round "6"]
[White "Yildiz, Serdar Murat"]
[Black "Celebi, Mehmet Alper"]
[Result "1-0"]
[ECO "B45"]
[WhiteElo "2201"]
[BlackElo "2014"]
[Annotator "RC"]
[PlyCount "52"]
[EventDate "2024.11.10"]
[EventType "swiss"]
[EventCountry "TUR"]
[SourceTitle "playchess.com"]
[Source "ChessBase"]
[SourceQuality "1"]
[TimeControl "5400+30"]

1. e4 {[%emt 0:03:00]} c5 {[%emt 0:01:00]} 2. Nf3 {[%emt 0:00:00]} e6 {[%emt 0:00:30]} 3. d4 {[%emt 0:00:00]} cxd4 {[%emt 0:00:30]} 4. Nxd4 {[%emt 0:00:00]} Nf6 {[%emt 0:00:00]} 5. Nc3 {[%emt 0:00:00]} Nc6 {[%emt 0:00:00]} 6. Nxc6 {[%emt 0:00:30]} bxc6 {[%emt 0:00:00]} 7. e5 {[%emt 0:00:30]} Nd5 {[%emt 0:00:00]} 8. Ne4 {[%emt 0:00:00]} Qc7 {[%emt 0:00:00]} 9. f4 {[%emt 0:00:00]} Qb6 {[%emt 0:00:00]} 10. c4 {[%emt 0:00:30]} Bb4+ {[%emt 0:00:00]} 11. Ke2 {[%emt 0:00:00]} Ba6 {[%emt 0:00:00]} 12. Kf3 {[%emt 0:00:00]} f5 {[%emt 0:00:00]} 13. exf6 {[%emt 0:00:00]} Nxf6 {[%emt 0:00:00]} 14. Be3 {[%emt 0:00:00]} Qa5 {[%emt 0:13:30]} 15. Nxf6+ {[%emt 0:10:30]} gxf6 {[%emt 0:00:30]} 16. Kf2 {[%emt 0:01:30]} Bc5 {[%emt 0:00:30]} 17. Qh5+ {[%emt 0:00:00]} Kd8 {[%emt 0:03:30]} 18. Qxc5 {[%emt 0:00:00]} Qc7 {[%emt 0:01:30]} 19. Rd1 {[%emt 0:00:30]} Rb8 {[%emt 0:00:30]} 20. b3 {[%emt 0:00:00]} e5 {[%emt 0:00:30]} 21. Rd6 {[%emt 0:00:00]} Rf8 {[%emt 0:01:30]} 22. Be2 {[%emt 0:00:30]} Rf7 {[%emt 0:03:30]} 23. Rhd1 {[%emt 0:00:30]} Rb6 {[%emt 0:00:30]} 24. f5 {[%emt 0:01:30]} Kc8 {[%emt 0:00:30]} 25. Bh5 {[%emt 0:00:30]} Rf8 {[%emt 0:00:30]} 26. Rxd7 {[%emt 0:00:00]} Rh8 {[%emt 0:02:30]} 1-0

[Event "8th Mersin Open 2024"]
[Site "Mersin"]
[Date "2024.11.13"]
[Round "6"]
[White "Atis, Hasan"]
[Black "Tirpan, Ceren"]
[Result "1-0"]
[ECO "B42"]
[WhiteElo "2167"]
[BlackElo "2053"]
[Annotator "RC"]
[PlyCount "59"]
[EventDate "2024.11.10"]
[EventType "swiss"]
[EventCountry "TUR"]
[SourceTitle "playchess.com"]
[Source "ChessBase"]
[SourceQuality "1"]
[TimeControl "5400+30"]

1. e4 {[%emt 0:04:00]} c5 {[%emt 0:01:00]} 2. Nf3 {[%emt 0:00:30]} e6 {[%emt 0:00:00]} 3. d4 {[%emt 0:00:00]} cxd4 {[%emt 0:00:00]} 4. Nxd4 {[%emt 0:00:00]} a6 {[%emt 0:00:00]} 5. Bd3 {[%emt 0:00:30]} Bc5 {[%emt 0:00:00]} 6. Nb3 {[%emt 0:00:30]} Ba7 {[%emt 0:00:30]} 7. Qg4 {[%emt 0:01:30]} Nf6 {[%emt 0:00:00]} 8. Qg3 {[%emt 0:00:30]} d6 {[%emt 0:01:00]} 9. O-O {[%emt 0:01:30]} Nc6 {[%emt 0:02:30]} 10. Nc3 {[%emt 0:01:30]} b5 {[%emt 0:10:30]} 11. Bg5 {[%emt 0:07:30]} Ne5 {[%emt 0:05:30]} 12. Rad1 {[%emt 0:05:30]} h6 {[%emt 0:08:30]} 13. Bc1 {[%emt 0:02:30]} g5 {[%emt 0:14:30]} 14. Kh1 {[%emt 0:18:30]} Bb7 {[%emt 0:08:30]} 15. f3 {[%emt 0:04:30]} Rg8 {[%emt 0:09:30]} 16. Qe1 {[%emt 0:02:30]} Nh5 {[%emt 0:06:30]} 17. a4 {[%emt 0:03:30]} bxa4 {[%emt 0:06:30]} 18. Nxa4 {[%emt 0:00:30]} Bc6 {[%emt 0:00:30]} 19. Nc3 {[%emt 0:00:30]} Qb6 {[%emt 0:00:30]} 20. Be2 {[%emt 0:08:30]} O-O-O {[%emt 0:04:41]} 21. Rd4 {[%emt 0:02:30]} a5 {[%emt 0:08:10]} 22. Rd1 {[%emt 0:07:30]} Qb4 {[%emt 0:05:30]} 23. Bd2 {[%emt 0:02:30]} Qb6 {[%emt 0:02:44]} 24. Ra1 {[%emt 0:00:30]} Kd7 {[%emt 0:00:18]} 25. Rxa5 {[%emt 0:00:30]} Ra8 {[%emt 0:00:32]} 26. Qa1 {[%emt 0:05:30]} Ke7 {[%emt 0:00:48]} 27. Ra6 {[%emt 0:00:59]} Qc7 {[%emt 0:00:48]} 28. Qa5 {[%emt 0:05:31]} Qd7 {[%emt 0:03:56]} 29. Nb5 {[%emt 0:01:39]} Bb7 {[%emt 0:00:55]} 30. Rxd6 {[%emt 0:01:37]} 1-0

[Event "8th Mersin Open 2024"]
[Site "Mersin"]
[Date "2024.11.13"]
[Round "6"]
[White "Hasirci, Ozgur Deniz"]
[Black "Babaniya, Benyamin"]
[Result "1/2-1/2"]
[ECO "C48"]
[WhiteElo "2128"]
[BlackElo "2080"]
[Annotator "NA RC"]
[PlyCount "82"]
[EventDate "2024.11.10"]
[EventType "swiss"]
[EventCountry "TUR"]
[SourceTitle "playchess.com"]
[Source "ChessBase"]
[SourceQuality "1"]
[TimeControl "5400+30"]

1. e4 {[%emt 0:01:00]} e5 {[%emt 0:01:00]} 2. Nf3 {[%emt 0:00:30]} Nf6 {[%emt 0:00:00]} 3. Nc3 {[%emt 0:00:00]} Nc6 {[%emt 0:00:00]} 4. Bb5 {[%emt 0:00:00]} Bc5 {[%emt 0:01:30]} 5. O-O {[%emt 0:00:00]} O-O {[%emt 0:04:30]} 6. d3 {[%emt 0:00:00]} d6 {[%emt 0:01:30]} 7. Na4 {[%emt 0:02:30]} Nd4 {[%emt 0:05:30]} 8. Nxd4 {[%emt 0:04:30]} Bxd4 {[%emt 0:00:30]} 9. c3 {[%emt 0:00:30]} Bg4 {[%emt 0:06:30]} 10. Qc2 {[%emt 0:03:30]} Bb6 {[%emt 0:05:30]} 11. Nxb6 {[%emt 0:00:30]} axb6 {[%emt 0:00:30]} 12. f4 {[%emt 0:04:30]} c6 {[%emt 0:03:30]} 13. Ba4 {[%emt 0:07:30]} b5 {[%emt 0:03:30]} 14. Bb3 {[%emt 0:00:30]} Be6 {[%emt 0:00:30]} 15. fxe5 {[%emt 0:01:30]} Bxb3 {[%emt 0:03:30]} 16. Qxb3 {[%emt 0:00:30]} dxe5 {[%emt 0:00:00]} 17. Rf3 {[%emt 0:02:30]} Qd6 {[%emt 0:03:00]} 18. Qc2 {[%emt 0:18:30]} Nd7 {[%emt 0:04:30]} 19. b4 {[%emt 0:02:30]} Qe6 {[%emt 0:14:30]} 20. a3 {[%emt 0:07:30]} f5 {[%emt 0:02:30]} 21. Rxf5 {[%emt 0:02:30]} Rxf5 {[%emt 0:00:30]} 22. exf5 {[%emt 0:00:00]} Qxf5 {[%emt 0:00:00]} 23. Be3 {[%emt 0:00:00]} Qe6 {[%emt 0:01:00]} 24. a4 {[%emt 0:02:30]} bxa4 {[%emt 0:04:30]} 25. Rxa4 {[%emt 0:00:30]} Rxa4 {[%emt 0:00:30]} 26. Qxa4 {[%emt 0:00:00]} e4 {[%emt 0:00:30]} 27. Qc2 {[%emt 0:08:00]} Nf6 {[%emt 0:04:30]} 28. dxe4 {[%emt 0:02:30]} b5 {[%emt 0:01:30]} 29. Bd4 {[%emt 0:02:30]} Qxe4 {[%emt 0:03:30]} 30. Qa2+ {[%emt 0:00:30]} Qd5 {[%emt 0:00:30]} 31. Qa8+ {[%emt 0:03:30]} Kf7 {[%emt 0:00:00]} 32. Qc8 {[%emt 0:00:30]} Qe6 {[%emt 0:04:00]} 33. Qc7+ {[%emt 0:00:30]} Kg6 {[%emt 0:00:30]} 34. Qg3+ {[%emt 0:00:30]} Kf7 {[%emt 0:00:30]} 35. h3 {[%emt 0:00:30]} Qe4 {[%emt 0:00:30]} 36. Kh2 {[%emt 0:01:30]} Qd5 {[%emt 0:01:30]} 37. Bc5 {[%emt 0:03:30]} Qe6 {[%emt 0:01:30]} 38. Qc7+ {[%emt 0:00:30]} Qd7 {[%emt 0:00:30]} 39. Qf4 {[%emt 0:00:30]} Qe6 {[%emt 0:00:30]} 40. Bd4 {[%emt 0:02:09]} Kg6 {[%emt 0:00:30]} 41. Qc7 {[%emt 0:00:37]} h6 {[%emt 0:02:25]} 1/2-1/2

[Event "8th Mersin Open 2024"]
[Site "Mersin"]
[Date "2024.11.13"]
[Round "6"]
[White "Sahin, Ata Sarp"]
[Black "Kazimova, Narmin"]
[Result "1/2-1/2"]
[ECO "D02"]
[WhiteElo "2109"]
[BlackElo "2155"]
[Annotator "RC"]
[PlyCount "81"]
[EventDate "2024.11.10"]
[EventType "swiss"]
[EventCountry "TUR"]
[SourceTitle "playchess.com"]
[Source "ChessBase"]
[SourceQuality "1"]
[TimeControl "5400+30"]

1. d4 {[%emt 0:04:00]} Nf6 {[%emt 0:01:00]} 2. Bf4 {[%emt 0:00:00]} e6 {[%emt 0:00:30]} 3. e3 {[%emt 0:01:00]} c5 {[%emt 0:00:30]} 4. c3 {[%emt 0:00:30]} Nc6 {[%emt 0:00:30]} 5. Nd2 {[%emt 0:00:00]} d5 {[%emt 0:03:30]} 6. Ngf3 {[%emt 0:00:00]} Bd6 {[%emt 0:00:30]} 7. Bg3 {[%emt 0:01:30]} O-O {[%emt 0:00:30]} 8. Bb5 {[%emt 0:00:30]} Ne7 {[%emt 0:08:30]} 9. Bd3 {[%emt 0:01:30]} Nf5 {[%emt 0:12:30]} 10. Bxf5 {[%emt 0:08:30]} exf5 {[%emt 0:00:30]} 11. Bxd6 {[%emt 0:00:30]} Qxd6 {[%emt 0:00:00]} 12. dxc5 {[%emt 0:00:30]} Qxc5 {[%emt 0:00:00]} 13. O-O {[%emt 0:00:00]} Qc7 {[%emt 0:08:30]} 14. Nb3 {[%emt 0:12:00]} a5 {[%emt 0:03:30]} 15. Nbd4 {[%emt 0:00:30]} f4 {[%emt 0:00:30]} 16. exf4 {[%emt 0:00:30]} Qxf4 {[%emt 0:00:30]} 17. Qd2 {[%emt 0:00:30]} Qc7 {[%emt 0:04:30]} 18. Qg5 {[%emt 0:21:30]} a4 {[%emt 0:04:30]} 19. Rfe1 {[%emt 0:05:30]} a3 {[%emt 0:08:30]} 20. bxa3 {[%emt 0:01:30]} h6 {[%emt 0:00:30]} 21. Qe5 {[%emt 0:00:30]} Qxc3 {[%emt 0:02:30]} 22. Rac1 {[%emt 0:06:30]} Qxa3 {[%emt 0:02:30]} 23. Nb5 {[%emt 0:00:30]} Qb4 {[%emt 0:01:30]} 24. Nc7 {[%emt 0:02:30]} Rxa2 {[%emt 0:07:30]} 25. Nxd5 {[%emt 0:00:30]} Nxd5 {[%emt 0:01:30]} 26. Qxd5 {[%emt 0:00:30]} Be6 {[%emt 0:01:30]} 27. Qd3 {[%emt 0:16:19]} Qb6 {[%emt 0:03:30]} 28. Qd4 {[%emt 0:01:27]} Qxd4 {[%emt 0:04:30]} 29. Nxd4 {[%emt 0:00:12]} Rd2 {[%emt 0:03:13]} 30. Nxe6 {[%emt 0:02:44]} fxe6 {[%emt 0:00:01]} 31. f3 {[%emt 0:00:07]} Rd6 {[%emt 0:06:39]} 32. Rc7 {[%emt 0:00:43]} Rf7 {[%emt 0:02:20]} 33. Rc8+ {[%emt 0:00:11]} Kh7 {[%emt 0:03:39]} 34. Rb8 {[%emt 0:05:32]} Kg6 {[%emt 0:01:41]} 35. Rb1 {[%emt 0:00:49]} Rdd7 {[%emt 0:00:39]} 36. Kf2 {[%emt 0:01:15]} Rd2+ {[%emt 0:01:02]} 37. Kg3 {[%emt 0:01:07]} Rdd7 {[%emt 0:01:58]} 38. Rb5 {[%emt 0:00:30]} Kf6 {[%emt 0:00:24]} 39. h4 {[%emt 0:01:13]} g6 {[%emt 0:00:13]} 40. Kf2 {[%emt 0:00:50]} Rd2+ {[%emt 0:00:29]} 41. Kg3 {[%emt 0:00:27]} 1/2-1/2

[Event "8th Mersin Open 2024"]
[Site "Mersin"]
[Date "2024.11.13"]
[Round "6"]
[White "Topuz, Mirac Melih"]
[Black "Mammadova, Gulnar"]
[Result "1/2-1/2"]
[ECO "E05"]
[WhiteElo "2097"]
[BlackElo "2328"]
[Annotator "RC"]
[PlyCount "60"]
[EventDate "2024.11.10"]
[EventType "swiss"]
[EventCountry "TUR"]
[SourceTitle "playchess.com"]
[Source "ChessBase"]
[SourceQuality "1"]
[TimeControl "5400+30"]

1. d4 {[%emt 0:05:00]} Nf6 {[%emt 0:01:00]} 2. c4 {[%emt 0:00:00]} e6 {[%emt 0:00:30]} 3. g3 {[%emt 0:00:00]} d5 {[%emt 0:00:00]} 4. Bg2 {[%emt 0:00:30]} Be7 {[%emt 0:00:00]} 5. Nf3 {[%emt 0:00:30]} O-O {[%emt 0:00:30]} 6. O-O {[%emt 0:00:00]} dxc4 {[%emt 0:01:30]} 7. Qc2 {[%emt 0:00:00]} a6 {[%emt 0:00:00]} 8. a4 {[%emt 0:00:30]} Bd7 {[%emt 0:00:00]} 9. Qxc4 {[%emt 0:00:30]} Bc6 {[%emt 0:00:00]} 10. Bg5 {[%emt 0:00:00]} Bd5 {[%emt 0:00:00]} 11. Qc2 {[%emt 0:01:00]} Be4 {[%emt 0:00:30]} 12. Qc1 {[%emt 0:00:30]} Nc6 {[%emt 0:01:30]} 13. e3 {[%emt 0:08:30]} h6 {[%emt 0:05:30]} 14. Bxf6 {[%emt 0:00:30]} Bxf6 {[%emt 0:00:30]} 15. Nc3 {[%emt 0:01:30]} Bh7 {[%emt 0:01:30]} 16. Rd1 {[%emt 0:02:30]} Na5 {[%emt 0:04:30]} 17. Nd2 {[%emt 0:02:30]} Be7 {[%emt 0:03:30]} 18. Na2 {[%emt 0:05:30]} Qd7 {[%emt 0:09:30]} 19. b4 {[%emt 0:03:30]} Nc6 {[%emt 0:00:00]} 20. Qb2 {[%emt 0:03:30]} Rab8 {[%emt 0:05:00]} 21. Rac1 {[%emt 0:12:30]} a5 {[%emt 0:10:30]} 22. b5 {[%emt 0:05:30]} Nb4 {[%emt 0:00:30]} 23. Nc4 {[%emt 0:03:30]} Nxa2 {[%emt 0:00:30]} 24. Qxa2 {[%emt 0:00:30]} Bb4 {[%emt 0:00:30]} 25. d5 {[%emt 0:14:30]} exd5 {[%emt 0:05:30]} 26. Rxd5 {[%emt 0:00:00]} Qe6 {[%emt 0:03:30]} 27. Rcd1 {[%emt 0:04:00]} c6 {[%emt 0:03:30]} 28. bxc6 {[%emt 0:05:30]} bxc6 {[%emt 0:00:30]} 29. Rd7 {[%emt 0:03:09]} Bf5 {[%emt 0:03:30]} 30. R7d4 {[%emt 0:09:10]} Bc5 {[%emt 0:05:30]} 1/2-1/2

[Event "8th Mersin Open 2024"]
[Site "Mersin"]
[Date "2024.11.13"]
[Round "6"]
[White "Pourramezan chafjiri, Parsa"]
[Black "Odeev, Handszar"]
[Result "1-0"]
[ECO "B51"]
[WhiteElo "2081"]
[BlackElo "2264"]
[Annotator "RC"]
[PlyCount "69"]
[EventDate "2024.11.10"]
[EventType "swiss"]
[EventCountry "TUR"]
[SourceTitle "playchess.com"]
[Source "ChessBase"]
[SourceQuality "1"]
[TimeControl "5400+30"]

1. e4 c5 2. Nf3 d6 3. Bb5+ Nd7 4. O-O a6 5. Bd3 Ne5 6. Nxe5 dxe5 7. a4 Nf6 8. Nc3 b6 9. Bc4 g6 10. h3 Bg7 11. d3 Nh5 12. Be3 e6 13. a5 b5 14. Nxb5 axb5 15. Bxb5+ Bd7 16. Bxd7+ Qxd7 17. Bxc5 Bf8 18. Bxf8 Kxf8 19. b4 Kg7 20. Qd2 Rhd8 21. Rfb1 Qb5 22. c4 Qb7 23. b5 Nf4 24. a6 Qe7 25. g3 Rxd3 26. Qe1 Nxh3+ 27. Kg2 Nf4+ 28. gxf4 exf4 29. Qh1 f3+ 30. Kf1 Qc5 31. b6 Qxc4 32. Kg1 Rxa6 33. Rxa6 Qxa6 34. b7 Rd8 35. Qh2 1-0

[Event "8th Mersin Open 2024"]
[Site "Mersin"]
[Date "2024.11.13"]
[Round "6"]
[White "Ererdem, Gani Eren"]
[Black "Mahdavi, Armin"]
[Result "1/2-1/2"]
[ECO "B06"]
[WhiteElo "2066"]
[BlackElo "2038"]
[Annotator "NA RC"]
[PlyCount "76"]
[EventDate "2024.11.10"]
[EventType "swiss"]
[EventCountry "TUR"]
[SourceTitle "playchess.com"]
[Source "ChessBase"]
[SourceQuality "1"]
[TimeControl "5400+30"]

1. d4 {[%emt 0:01:00]} g6 {[%emt 0:01:00]} 2. e4 {[%emt 0:03:30]} Bg7 {[%emt 0:00:00]} 3. Nf3 {[%emt 0:00:00]} d6 {[%emt 0:01:00]} 4. Bc4 {[%emt 0:00:00]} a6 {[%emt 0:08:30]} 5. O-O {[%emt 0:02:30]} e6 {[%emt 0:00:30]} 6. Re1 {[%emt 0:01:30]} Ne7 {[%emt 0:00:30]} 7. c3 {[%emt 0:00:30]} O-O {[%emt 0:00:30]} 8. Bf4 {[%emt 0:05:30]} d5 {[%emt 0:04:30]} 9. Bd3 {[%emt 0:00:30]} Nd7 {[%emt 0:01:30]} 10. exd5 {[%emt 0:01:30]} Nxd5 {[%emt 0:00:30]} 11. Bg5 {[%emt 0:01:30]} Ne7 {[%emt 0:05:30]} 12. Nbd2 {[%emt 0:03:30]} c5 {[%emt 0:03:30]} 13. Ne4 {[%emt 0:09:30]} cxd4 {[%emt 0:02:30]} 14. cxd4 {[%emt 0:08:30]} f6 {[%emt 0:02:30]} 15. Bd2 {[%emt 0:00:30]} Nd5 {[%emt 0:00:30]} 16. Rc1 {[%emt 0:06:30]} Qe7 {[%emt 0:15:30]} 17. Nc3 {[%emt 0:07:30]} Nxc3 {[%emt 0:02:30]} 18. Bxc3 {[%emt 0:04:30]} Re8 {[%emt 0:12:30]} 19. Qb3 {[%emt 0:06:30]} Qd6 {[%emt 0:06:30]} 20. Nd2 {[%emt 0:11:30]} b5 {[%emt 0:09:30]} 21. a4 {[%emt 0:00:30]} Bb7 {[%emt 0:07:03]} 22. axb5 {[%emt 0:00:30]} axb5 {[%emt 0:00:20]} 23. Ne4 {[%emt 0:02:30]} Qf4 {[%emt 0:02:48]} 24. Bd2 {[%emt 0:02:30]} Qh4 {[%emt 0:04:59]} 25. Rc7 {[%emt 0:13:55]} Bd5 {[%emt 0:00:52]} 26. Qc2 {[%emt 0:00:52]} Nf8 {[%emt 0:03:31]} 27. h3 {[%emt 0:00:02]} Rab8 {[%emt 0:01:25]} 28. Nd6 {[%emt 0:04:34]} Red8 {[%emt 0:00:16]} 29. Ne4 {[%emt 0:00:46]} Nd7 {[%emt 0:02:03]} 30. Nc5 {[%emt 0:02:08]} Nf8 {[%emt 0:01:15]} 31. Be4 {[%emt 0:00:36]} f5 {[%emt 0:01:00]} 32. Bxd5 {[%emt 0:00:18]} exd5 {[%emt 0:00:18]} 33. Nb3 {[%emt 0:00:42]} Re8 {[%emt 0:00:36]} 34. Rxe8 {[%emt 0:00:32]} Rxe8 {[%emt 0:00:02]} 35. Qd3 {[%emt 0:00:28]} Ne6 {[%emt 0:00:23]} 36. Rc1 {[%emt 0:00:34]} Nxd4 {[%emt 0:00:42]} 37. Nxd4 {[%emt 0:00:25]} Bxd4 {[%emt 0:00:37]} 38. Rf1 {[%emt 0:00:30]} Rb8 {[%emt 0:00:28]} 1/2-1/2

[Event "8th Mersin Open 2024"]
[Site "Mersin"]
[Date "2024.11.13"]
[Round "6"]
[White "Khalili, Saeid"]
[Black "Akkara, Omer"]
[Result "1/2-1/2"]
[ECO "D94"]
[WhiteElo "2066"]
[BlackElo "2103"]
[Annotator "NA RC"]
[PlyCount "156"]
[EventDate "2024.11.10"]
[EventType "swiss"]
[EventCountry "TUR"]
[SourceTitle "playchess.com"]
[Source "ChessBase"]
[SourceQuality "1"]
[TimeControl "5400+30"]

1. d4 {[%emt 0:01:00]} Nf6 {[%emt 0:01:00]} 2. Nf3 {[%emt 0:00:30]} g6 {[%emt 0:00:30]} 3. c4 {[%emt 0:00:30]} Bg7 {[%emt 0:00:00]} 4. Nc3 {[%emt 0:00:30]} d5 {[%emt 0:00:00]} 5. e3 {[%emt 0:00:00]} O-O {[%emt 0:00:00]} 6. cxd5 {[%emt 0:02:00]} Nxd5 {[%emt 0:01:00]} 7. Bc4 {[%emt 0:00:00]} Nb6 {[%emt 0:00:30]} 8. Bb3 {[%emt 0:00:00]} N8d7 {[%emt 0:00:30]} 9. O-O {[%emt 0:00:30]} c5 {[%emt 0:00:30]} 10. h3 {[%emt 0:01:30]} cxd4 {[%emt 0:00:30]} 11. exd4 {[%emt 0:00:30]} Nf6 {[%emt 0:00:30]} 12. Be3 {[%emt 0:00:30]} Nfd5 {[%emt 0:00:30]} 13. Nxd5 {[%emt 0:00:30]} Nxd5 {[%emt 0:00:30]} 14. Rc1 {[%emt 0:00:30]} e6 {[%emt 0:03:30]} 15. Qd2 {[%emt 0:07:30]} b6 {[%emt 0:03:30]} 16. Rc2 {[%emt 0:05:30]} Bb7 {[%emt 0:00:30]} 17. Ne5 {[%emt 0:09:30]} Qd6 {[%emt 0:02:30]} 18. Nc4 {[%emt 0:01:30]} Qd7 {[%emt 0:01:30]} 19. Rfc1 {[%emt 0:05:30]} Rfd8 {[%emt 0:10:30]} 20. Ne5 {[%emt 0:06:30]} Qd6 {[%emt 0:00:30]} 21. Nc4 {[%emt 0:12:30]} Qe7 {[%emt 0:08:30]} 22. a3 {[%emt 0:05:30]} Nxe3 {[%emt 0:11:30]} 23. fxe3 {[%emt 0:00:30]} Qg5 {[%emt 0:01:30]} 24. Qf2 {[%emt 0:03:30]} Be4 {[%emt 0:01:30]} 25. Rc3 {[%emt 0:02:30]} h5 {[%emt 0:12:30]} 26. Kh2 {[%emt 0:14:30]} Rd7 {[%emt 0:07:30]} 27. Qg3 {[%emt 0:01:30]} Qxg3+ {[%emt 0:02:30]} 28. Kxg3 {[%emt 0:00:02]} Bb7 {[%emt 0:01:30]} 29. Bd1 {[%emt 0:03:42]} Rad8 {[%emt 0:00:30]} 30. Bf3 {[%emt 0:00:37]} Bxf3 {[%emt 0:00:30]} 31. Kxf3 {[%emt 0:01:15]} Rd5 {[%emt 0:00:30]} 32. b4 {[%emt 0:01:47]} Rf5+ {[%emt 0:01:30]} 33. Ke2 {[%emt 0:00:16]} Rg5 {[%emt 0:00:30]} 34. Kf2 {[%emt 0:00:39]} e5 {[%emt 0:02:30]} 35. dxe5 {[%emt 0:01:24]} Kh7 {[%emt 0:10:47]} 36. a4 {[%emt 0:02:19]} a6 {[%emt 0:02:06]} 37. R3c2 {[%emt 0:00:55]} b5 {[%emt 0:02:49]} 38. axb5 {[%emt 0:00:30]} axb5 {[%emt 0:00:00]} 39. Na3 {[%emt 0:01:27]} Rxe5 {[%emt 0:01:02]} 40. Rc5 {[%emt 0:00:19]} Rd2+ {[%emt 0:00:46]} 41. Kf3 {[%emt 0:00:31]} Re6 {[%emt 0:05:47]} 42. Rxb5 {[%emt 0:00:58]} Rf6+ {[%emt 0:03:01]} 43. Kg3 {[%emt 0:01:31]} Rff2 {[%emt 0:00:42]} 44. Rg1 {[%emt 0:00:43]} Rfe2 {[%emt 0:01:54]} 45. Nc4 {[%emt 0:00:47]} Rc2 {[%emt 0:00:00]} 46. Rc5 {[%emt 0:00:39]} Bf8 {[%emt 0:00:20]} 47. Rc8 {[%emt 0:05:25]} Bxb4 {[%emt 0:00:07]} 48. Kf3 {[%emt 0:01:21]} Rf2+ {[%emt 0:01:12]} 49. Kg3 {[%emt 0:00:30]} h4+ {[%emt 0:00:30]} 50. Kh2 {[%emt 0:00:30]} Kg7 {[%emt 0:01:47]} 51. Kh1 {[%emt 0:00:42]} Rfe2 {[%emt 0:00:23]} 52. Rc7 {[%emt 0:00:51]} Bd6 {[%emt 0:00:16]} 53. Nxd6 {[%emt 0:00:53]} Rxc7 {[%emt 0:00:30]} 54. Ne8+ {[%emt 0:00:05]} Kh6 {[%emt 0:00:15]} 55. Nxc7 {[%emt 0:00:30]} Rxe3 {[%emt 0:00:00]} 56. Rf1 {[%emt 0:00:28]} f5 {[%emt 0:00:00]} 57. Kg1 {[%emt 0:00:16]} Re5 {[%emt 0:00:17]} 58. Rd1 {[%emt 0:00:15]} g5 {[%emt 0:00:00]} 59. Rd6+ {[%emt 0:00:00]} Kh5 {[%emt 0:00:16]} 60. Rd5 {[%emt 0:00:17]} Re1+ {[%emt 0:01:41]} 61. Kf2 {[%emt 0:00:30]} Rc1 {[%emt 0:00:30]} 62. Ne6 {[%emt 0:00:30]} Rc2+ {[%emt 0:00:30]} 63. Kg1 {[%emt 0:00:30]} Rc1+ {[%emt 0:00:30]} 64. Kh2 {[%emt 0:00:30]} Rf1 {[%emt 0:00:45]} 65. Rd6 {[%emt 0:02:11]} g4 {[%emt 0:00:58]} 66. hxg4+ {[%emt 0:00:39]} fxg4 {[%emt 0:00:06]} 67. Rd5+ {[%emt 0:00:19]} Kg6 {[%emt 0:00:31]} 68. Rg5+ {[%emt 0:00:44]} Kf6 {[%emt 0:00:30]} 69. Rxg4 {[%emt 0:00:30]} Kxe6 {[%emt 0:00:00]} 70. Rxh4 {[%emt 0:00:00]} Kf5 {[%emt 0:00:00]} 71. Rh8 {[%emt 0:00:20]} Kg6 {[%emt 0:00:28]} 72. Ra8 {[%emt 0:00:30]} Rb1 {[%emt 0:00:00]} 73. Kh3 {[%emt 0:00:00]} Rb6 {[%emt 0:00:00]} 74. Kh4 {[%emt 0:00:03]} Rc6 {[%emt 0:00:27]} 75. g4 {[%emt 0:00:30]} Rb6 {[%emt 0:00:30]} 76. Rg8+ {[%emt 0:00:30]} Kh7 {[%emt 0:00:30]} 77. Rg5 {[%emt 0:00:30]} Rh6+ {[%emt 0:00:30]} 78. Rh5 {[%emt 0:00:30]} Kg6 {[%emt 0:00:00]} 1/2-1/2